fUSD/lending_fUSD_20251120
["ID","MTS","AMOUNT","RATE_DAILY","PERIOD"]
[394507122,1763646644966,-1246.0,0.00041918,30]
[394507123,1763646644975,-151.0,0.00041918,30]
[394507124,1763646644984,-152.0,0.00041918,30]
[394507125,1763646644993,-152.0,0.00041918,30]
[394507126,1763646645002,-1246.0,0.00041918,30]
[394507127,1763646645012,-151.0,0.00041918,30]
[394507128,1763646645021,-1246.0,0.00041918,30]
[394507129,1763646645030,-152.0,0.00041918,30]
[394507130,1763646645041,-151.0,0.00041918,30]
[394507131,1763646645051,-1246.0,0.00041918,30]
[394507132,1763646645060,-152.0,0.00041918,30]
[394507133,1763646645069,-151.0,0.00041918,30]
[394507134,1763646645079,-1246.0,0.00041918,30]
[394507135,1763646645087,-151.0,0.00041918,30]
[394507136,1763646645097,-1246.0,0.00041918,30]
[394507137,1763646645106,-151.0,0.00041918,30]
[394507138,1763646645115,-153.0,0.00041918,30]
[394507139,1763646645124,-151.0,0.00041918,30]
[394507140,1763646645133,-1246.0,0.00041918,30]
[394507141,1763646645142,-153.0,0.00041918,30]
[394507142,1763646645151,-151.0,0.00041918,30]
[394507143,1763646645160,-153.0,0.00041918,30]
[394507144,1763646645169,-151.0,0.00041918,30]
[394507145,1763646645178,-153.0,0.00041918,30]
[394507146,1763646645188,-151.0,0.00041918,30]
[394507147,1763646645197,-155.14782978,0.00041918,30]
[394507148,1763646645207,-152.0,0.00041918,30]
[394507149,1763646645216,-1246.0,0.00041918,30]
[394507150,1763646645225,-151.0,0.00041918,30]
[394507151,1763646645235,-151.0,0.00041918,30]
[394507152,1763646645246,-152.0,0.00041918,30]
[394507153,1763646645257,-1246.0,0.00041918,30]
[394507154,1763646645268,-151.0,0.00041918,30]
[394507155,1763646645278,-1246.0,0.00041918,30]
[394507156,1763646645288,-152.0,0.00041918,30]
[394507157,1763646645298,-151.0,0.00041918,30]
[394507158,1763646645308,-1246.0,0.00041918,30]
[394507159,1763646645318,-152.0,0.00041918,30]
[394507160,1763646645328,-151.0,0.00041918,30]
[394507161,1763646645338,-1246.0,0.00041918,30]
[394507162,1763646645348,-152.0,0.00041918,30]
[394507163,1763646645358,-151.0,0.00041918,30]
[394507164,1763646645367,-152.0,0.00041918,30]
[394507165,1763646645377,-1246.0,0.00041918,30]
[394507166,1763646645386,-151.0,0.00041918,30]
[394507167,1763646645397,-152.0,0.00041918,30]
[394507168,1763646645406,-1246.0,0.00041918,30]
[394507169,1763646645415,-151.0,0.00041918,30]
[394507170,1763646645425,-152.0,0.00041918,30]
[394507171,1763646645435,-1246.0,0.00041918,30]
[394507172,1763646645444,-151.0,0.00041918,30]
[394507173,1763646645454,-152.0,0.00041918,30]
[394507174,1763646645463,-1246.0,0.00041918,30]
[394507175,1763646645473,-151.0,0.00041918,30]
[394507176,1763646645483,-1246.0,0.00041918,30]
[394507177,1763646645493,-152.0,0.00041918,30]
[394507178,1763646645504,-151.0,0.00041918,30]
[394507179,1763646645513,-1246.0,0.00041918,30]
[394507180,1763646645523,-152.0,0.00041918,30]
[394507181,1763646645532,-151.0,0.00041918,30]
[394507182,1763646645541,-151.0,0.00041918,30]
[394507183,1763646645551,-152.0,0.00041918,30]
[394507184,1763646645560,-1246.0,0.00041918,30]
[394507185,1763646645569,-151.0,0.00041918,30]
[394507186,1763646645578,-152.0,0.00041918,30]
[394507187,1763646645587,-1246.0,0.00041918,30]
[394507188,1763646645597,-152.0,0.00041918,30]
[394507189,1763646645606,-151.0,0.00041918,30]
[394507190,1763646645615,-1246.0,0.00041918,30]
[394507191,1763646645625,-152.0,0.00041918,30]
[394507192,1763646645635,-151.0,0.00041918,30]
[394507193,1763646645646,-1246.0,0.00041918,30]
[394507194,1763646645656,-152.0,0.00041918,30]
[394507195,1763646645666,-151.0,0.00041918,30]
[394507196,1763646645676,-1131.23535878,0.00041918,30]
[394507197,1763646645687,-152.0,0.00041918,30]
[394507198,1763646645697,-151.0,0.00041918,30]
[394507199,1763646645707,-152.0,0.00041918,30]
[394507200,1763646645717,-151.0,0.00041918,30]
[394507201,1763646645726,-152.0,0.00041918,30]
[394507202,1763646645736,-151.0,0.00041918,30]
[394507203,1763646645746,-151.0,0.00041918,30]
[394507204,1763646645756,-152.0,0.00041918,30]
[394507205,1763646645766,-151.0,0.00041918,30]
[394507206,1763646645776,-152.0,0.00041918,30]
[394507207,1763646645785,-166.0,0.00041918,30]
[394507208,1763646645795,-151.0,0.00041918,30]
[394507209,1763646645805,-166.0,0.00041918,30]
[394507210,1763646645817,-152.0,0.00041918,30]
[394507211,1763646645827,-151.0,0.00041918,30]
[394507212,1763646645836,-199.24581473,0.00041918,30]
[394507213,1763646645845,-151.0,0.00041918,30]
[394507214,1763646645856,-166.0,0.00041918,30]
[394507215,1763646645866,-166.0,0.00041918,30]
[394507216,1763646645875,-151.0,0.00041918,30]
[394507217,1763646645887,-166.0,0.00041918,30]
[394507218,1763646645896,-151.0,0.00041918,30]
[394507219,1763646645906,-253.61607805,0.00041918,30]
[394507220,1763646645917,-151.0,0.00041918,30]
[394507221,1763646645926,-151.0,0.00041918,30]
[394507222,1763646645936,-151.0,0.00041918,30]
[394507223,1763646645946,-151.0,0.00041918,30]
[394507224,1763646645956,-151.0,0.00041918,30]
[394507225,1763646645965,-216.85797907,0.00041918,30]
[394507226,1763646645975,-31146.93984327,0.0004192,10]
[394507227,1763646645984,-154.22212715,0.0004192,120]
[394507228,1763646645993,-150.0,0.0004192,120]
[394507229,1763646646002,-200.0,0.0004192,7]
[394507230,1763646646011,-502.99,0.0004192,10]
[394507231,1763646646021,-165.69252863,0.00041925,16]
[394507232,1763646646030,-2085.05083254,0.00041936,2]
[394507233,1763646646039,-189.05531488,0.00041945,30]
[394507234,1763646646049,-279.58435637,0.00041945,30]
[394507235,1763646646059,-150.0,0.00041945,30]
[394507236,1763646646068,-158.56700645,0.00041945,30]
[394507237,1763646646078,-226.24508708,0.00041945,30]
[394507238,1763646646087,-202.93627182,0.00041945,30]
[394507239,1763646646098,-152.95383245,0.00041945,30]
[394507240,1763646646109,-183.4097123,0.00041945,30]
[394507242,1763646646118,-498.23953974,0.00041946,7]
[394507244,1763646646128,-498.23953974,0.00041946,7]
[394507246,1763646646137,-5738.0,0.00041948,30]
[394507248,1763646646146,-593.11,0.00041952,2]
[394507249,1763646646155,-280.28022586,0.00041953,120]
[394507250,1763646646164,-593.11,0.00041953,2]
[394507251,1763646646173,-593.11,0.00041953,2]
[394507252,1763646646182,-593.11,0.00041953,2]
[394507253,1763646646191,-593.11,0.00041953,2]
[394507254,1763646646200,-593.11,0.00041953,2]
[394507255,1763646646209,-593.11,0.00041953,2]
[394507256,1763646646218,-593.11,0.00041953,2]
[394507257,1763646646227,-593.11,0.00041953,2]
[394507258,1763646646236,-593.11,0.00041953,2]
[394507259,1763646646246,-593.11,0.00041953,2]
[394507260,1763646646255,-593.11,0.00041953,2]
[394507261,1763646646266,-593.11,0.00041953,2]
[394507262,1763646646275,-593.11,0.00041953,2]
[394507263,1763646646284,-593.18,0.00041953,2]
[394507264,1763646646293,-151.0,0.00041953,14]
[394507265,1763646646303,-151.0,0.00041954,120]
[394507266,1763646646313,-151.0,0.00041954,120]
[394507267,1763646646323,-151.0,0.00041954,120]
[394507268,1763646646332,-151.0,0.00041954,120]
[394507269,1763646646342,-151.0,0.00041954,120]
[394507270,1763646646352,-151.0,0.00041954,14]
[394507271,1763646646361,-151.0,0.00041954,14]
[394507272,1763646646370,-151.0,0.00041954,14]
[394507273,1763646646379,-151.0,0.00041954,14]
[394507274,1763646646388,-215.392789,0.00041954,14]
[394507275,1763646646397,-151.0,0.00041954,120]
[394507276,1763646646407,-151.0,0.00041954,120]
[394507277,1763646646416,-50000.0,0.00041955,31]
[394507278,1763646646425,-50000.0,0.00041955,32]
[394507279,1763646646435,-50000.0,0.00041955,33]
[394507280,1763646646444,-50000.0,0.00041955,34]
[394507281,1763646646453,-50000.0,0.00041955,35]
[394507282,1763646646463,-151.0,0.00041956,60]
[394507283,1763646646472,-273.587856,0.00041956,15]
[394507284,1763646646481,-273.587856,0.00041956,15]
[394507285,1763646646491,-273.587856,0.00041956,15]
[394507286,1763646646501,-273.587856,0.00041956,15]
[394507287,1763646646510,-273.587856,0.00041956,15]
[394507288,1763646646522,-273.587856,0.00041956,15]
[394507289,1763646646532,-273.587856,0.00041956,15]
[394507290,1763646646542,-273.587856,0.00041956,15]
[394507291,1763646646551,-273.587856,0.00041956,15]
[394507292,1763646646561,-273.587856,0.00041956,15]
[394507293,1763646646570,-273.587856,0.00041956,15]
[394507294,1763646646579,-273.587856,0.00041956,15]
[394507295,1763646646588,-273.587856,0.00041956,15]
[394507296,1763646646597,-273.587856,0.00041956,15]
[394507297,1763646646606,-273.587856,0.00041956,15]
[394507298,1763646646615,-273.587856,0.00041956,15]
[394507299,1763646646625,-273.587856,0.00041956,15]
[394507300,1763646646634,-273.587856,0.00041956,15]
[394507301,1763646646643,-273.587856,0.00041956,15]
[394507302,1763646646659,-273.587865,0.00041956,15]
[394507303,1763646646674,-151.0,0.00041956,15]
[394507304,1763646646683,-151.0,0.00041956,15]
[394507305,1763646646693,-151.0,0.00041956,15]
[394507306,1763646646702,-155.451992,0.00041956,15]
[394507307,1763646646713,-151.0,0.00041956,120]
[394507308,1763646646722,-151.0,0.00041956,120]
[394507309,1763646646733,-151.0,0.00041956,120]
[394507310,1763646646742,-151.0,0.00041956,120]
[394507311,1763646646752,-151.0,0.00041956,120]
[394507313,1763646646761,-151.0,0.00041956,120]
[394507315,1763646646771,-233.904812,0.00041956,120]
[394507317,1763646646781,-151.0,0.00041956,30]
[394507319,1763646646791,-151.0,0.00041956,30]
[394507321,1763646646802,-151.0,0.00041956,30]
[394507323,1763646646813,-151.0,0.00041956,30]
[394507325,1763646646823,-151.0,0.00041956,30]
[394507327,1763646646832,-151.0,0.00041956,30]
[394507328,1763646646842,-151.0,0.00041956,30]
[394507329,1763646646851,-151.0,0.00041956,30]
[394507330,1763646646860,-151.0,0.00041956,30]
[394507331,1763646646870,-151.0,0.00041956,30]
[394507332,1763646646879,-151.0,0.00041956,30]
[394507333,1763646646888,-234.986588,0.00041956,30]
[394507334,1763646646898,-193.08950974,0.00041956,27]
[394507335,1763646646907,-3204914.15505521,0.00041956,7]
[394507336,1763646647059,-5860.0317327,0.00041956,7]
[394507337,1763646647297,174.79070181,0.0003,120]
[394507338,1763646647314,-9257.9665546,0.00016572,2]
[394507339,1763646647325,-360.05207118,0.00016572,2]
[394507340,1763646647334,-172.95386202,0.00016599,2]
[394507341,1763646647343,-500.0,0.00016599,2]
[394507342,1763646647353,-301.74837149,0.00016599,2]
[394507343,1763646647362,-194.89867453,0.00016599,2]
[394507344,1763646647371,-500.0,0.00016599,2]
[394507345,1763646647380,-1014.0,0.000411,2]
[394507346,1763646647390,-172.11962072,0.00041956,31]
[394507347,1763646647400,-186586.69528601,0.00041956,7]
[394507348,1763646647412,-10636.42938795,0.00041956,7]
[394507349,1763646647424,-18274.0,0.00041956,7]
[394507350,1763646647436,-293.71427471,0.00041956,7]
[394507353,1763646724437,454.0,0.00016146,2]
[394507355,1763646813182,600.0,0.000169,6]
[394507356,1763646844117,1000.0,0.00016,30]
[394507358,1763646932556,487.6,0.00013699,2]
[394507359,1763647016251,175.84,0.00015784,2]
[394507361,1763647188184,2751.0,0.00015896,2]
[394507365,1763647241626,159.16,0.00012781,2]
[394507366,1763647260608,1852.42,0.00015823,2]
[394507371,1763647337025,150.0,0.00015967,2]
[394507374,1763647407895,1000.0,0.00015762,2]
[394507378,1763647644489,600.0,0.000169,6]
[394507510,1763647664759,386.02,0.00015733,2]
[394507513,1763647680602,154.95,0.00015849,2]
[394507518,1763647718233,166.66,0.00015071,2]
[394507519,1763647718453,166.66,0.00015388,2]
[394507520,1763647718673,166.66,0.00015706,2]
[394507521,1763647718880,166.66,0.00016023,2]
[394507540,1763647801623,250.0,0.0001575,2]
[394507588,1763647819956,563.786055,0.00032876,120]
[394507610,1763647831412,-691.0,0.00016224,2]
[394507611,1763647831431,-312.57019461,0.0001624,2]
[394507613,1763647831452,-299.90601822,0.00016249,2]
[394507615,1763647831531,-0.09398178,0.00016249,2]
[394507616,1763647831544,-273.65301822,0.00016274,2]
[394507617,1763647831560,-417.34698178,0.00016274,2]
[394507618,1763647831574,-175.0,0.000163,2]
[394507619,1763647831591,-691.0,0.00016318,2]
[394507620,1763647831603,-166.66,0.0001634,2]
[394507621,1763647831615,-8656.21676322,0.00016399,2]
[394507622,1763647831629,-178.96114399,0.00016399,2]
[394507623,1763647831642,-304.78467559,0.000164,2]
[394507624,1763647831654,-691.0,0.00016402,2]
[394507625,1763647831666,-283.0,0.00016457,2]
[394507626,1763647831679,-1200.0,0.00016457,2]
[394507627,1763647831692,-300.0,0.00016457,2]
[394507628,1763647831704,-300.0,0.00016457,2]
[394507630,1763647831717,-634.18,0.00016458,2]
[394507632,1763647831734,-155.49,0.00016458,2]
[394507635,1763647831748,-150.99,0.00016458,2]
[394507637,1763647831760,-5721.57766653,0.00016458,2]
[394507639,1763647831775,-4278.41233347,0.00016458,2]
[394507640,1763647831788,-18183.75817162,0.00016499,2]
[394507642,1763647831803,-805.848,0.00016499,2]
[394507645,1763647831822,-425.439004,0.00016499,2]
[394507651,1763647837484,-312.57019461,0.00016272,2]
[394507652,1763647837497,-1695.66769897,0.00016499,2]
[394507653,1763647837511,-984.039998,0.00016499,2]
[394507654,1763647837529,-509.61914462,0.00016499,2]
[394507655,1763647837542,-540.51117255,0.00016499,2]
[394507694,1763647839439,-36377.341,0.00016499,2]
[394507695,1763647839503,-73062.9536497,0.00016499,2]
[394507696,1763647839565,-3005.4024,0.00016499,2]
[394507697,1763647839625,-373090.53776054,0.00016499,2]
[394507698,1763647839636,-1000.0,0.000165,2]
[394507699,1763647839648,-15472.5438,0.000165,2]
[394507700,1763647839660,-2500.0,0.000165,2]
[394507701,1763647839672,-550.0,0.00016563,2]
[394507702,1763647839684,-2146.25354669,0.00016564,2]
[394507703,1763647839695,-691.0,0.00016568,2]
[394507704,1763647839707,-500.0,0.00016573,2]
[394507705,1763647839719,-500.0,0.00016573,2]
[394507706,1763647839730,-596.34053693,0.00016573,2]
[394507707,1763647839741,-500.0,0.00016573,2]
[394507708,1763647839756,-360.35317207,0.00016573,2]
[394507709,1763647839767,-500.0,0.00016573,2]
[394507710,1763647839779,-500.0,0.00016573,2]
[394507711,1763647839791,-500.0,0.00016573,2]
[394507712,1763647840064,-211.22386004,0.00016599,2]
[394507713,1763647840076,-500.0,0.00016599,2]
[394507714,1763647840086,-336.42907217,0.00016599,2]
[394507715,1763647840096,-460.93199095,0.00016599,2]
[394507716,1763647840105,-500.0,0.00016599,2]
[394507717,1763647840115,-500.0,0.00016599,2]
[394507718,1763647840124,-463.12990097,0.00016599,2]
[394507719,1763647840134,-3306.88157969,0.00016599,2]
[394507720,1763647840144,-510.88641036,0.00016599,2]
[394507721,1763647840154,-1669.294,0.00016599,2]
[394507722,1763647840164,-500.0,0.00016599,2]
[394507723,1763647840174,-580.77374724,0.00016599,2]
[394507724,1763647840183,-175.261,0.00016599,2]
[394507725,1763647840193,-500.0,0.00016599,2]
[394507726,1763647840210,-500.0,0.00016599,2]
[394507727,1763647840222,-546.14661042,0.00016599,2]
[394507728,1763647840232,-236.90694414,0.00016599,2]
[394507729,1763647840243,-500.0,0.00016599,2]
[394507730,1763647840253,-500.0,0.00016599,2]
[394507731,1763647840263,-500.0,0.00016599,2]
[394507732,1763647840272,-513.24258556,0.00016599,2]
[394507733,1763647840283,-166.66,0.00016657,2]
[394507734,1763647840293,-691.0,0.00016664,2]
[394507735,1763647840302,-1000.0,0.000167,2]
[394507736,1763647840311,-634.18,0.00016732,2]
[394507737,1763647840321,-691.0,0.00016802,2]
[394507738,1763647840330,-154.95,0.00016839,2]
[394507739,1763647840339,-691.0,0.00016908,2]
[394507740,1763647840349,-691.0,0.00016952,2]
[394507741,1763647840359,-691.0,0.00016964,2]
[394507742,1763647840370,-526.81127746,0.00016973,2]
[394507743,1763647840379,-250.0,0.00017,2]
[394507744,1763647840389,-634.18,0.00017006,2]
[394507745,1763647840399,-272.83378756,0.00017021,2]
[394507746,1763647840409,-691.0,0.00017084,2]
[394507747,1763647840419,-500.0,0.00017121,2]
[394507748,1763647840429,-940.38709243,0.00017121,2]
[394507749,1763647840438,-691.0,0.00017129,2]
[394507750,1763647840448,-691.0,0.00017253,2]
[394507751,1763647840458,-634.18,0.0001728,2]
[394507752,1763647840471,-691.0,0.00017299,2]
[394507753,1763647840481,-691.0,0.00017358,2]
[394507754,1763647840491,-691.0,0.00017369,2]
[394507755,1763647840500,-691.0,0.00017376,2]
[394507756,1763647840510,-691.0,0.00017377,2]
[394507757,1763647840520,-691.0,0.00017461,2]
[394507758,1763647840530,-691.0,0.00017488,2]
[394507759,1763647840539,-691.0,0.00017554,2]
[394507760,1763647840550,-634.18,0.00017554,2]
[394507761,1763647840559,-691.0,0.00017586,2]
[394507762,1763647840569,-691.0,0.00017634,2]
[394507763,1763647840580,-691.0,0.00017669,2]
[394507764,1763647840590,-935.0,0.00017673,2]
[394507765,1763647840600,-1000.0,0.00017732,2]
[394507766,1763647840611,-175.84,0.00017757,2]
[394507767,1763647840622,-634.19,0.00017828,2]
[394507768,1763647840632,-154.95,0.0001783,2]
[394507769,1763647840642,-250.0,0.00017846,2]
[394507770,1763647840651,-300.0,0.00017846,2]
[394507771,1763647840661,-250.0,0.00017846,2]
[394507772,1763647840670,-300.0,0.00017846,2]
[394507773,1763647840681,-300.0,0.00017846,2]
[394507774,1763647840692,-300.0,0.00017846,2]
[394507775,1763647840702,-300.0,0.00017846,2]
[394507776,1763647840713,-300.0,0.00017846,2]
[394507777,1763647840737,-193.0,0.00017846,2]
[394507778,1763647840756,-250.0,0.00017846,2]
[394507779,1763647840767,-691.0,0.00017859,2]
[394507780,1763647840777,-300.0,0.00017985,2]
[394507781,1763647840787,-1054.24,0.00017996,2]
[394507782,1763647840797,-1680.0,0.00018075,2]
[394507783,1763647840807,-154.95,0.0001882,2]
[394507784,1763647840817,-165.0,0.00018849,2]
[394507785,1763647840827,-8656.2167632,0.00019228,2]
[394507786,1763647840836,-178.96114393,0.00019228,2]
[394507787,1763647840845,-2146.25354667,0.00019375,2]
[394507788,1763647840855,-1000.0,0.00019703,2]
[394507789,1763647840865,-175.84,0.0001973,2]
[394507790,1763647840875,-154.95,0.00019811,2]
[394507791,1763647840885,-1371.0,0.00019851,2]
[394507792,1763647840895,-56043.0,0.0002,7]
[394507793,1763647840905,-487.6,0.00020187,2]
[394507794,1763647840914,-154.95,0.00020801,2]
[394507795,1763647840924,-1000.0,0.00021673,2]
[394507796,1763647840934,-175.84,0.00021703,2]
[394507797,1763647840944,-154.95,0.00021792,2]
[394507798,1763647840954,-8656.2167632,0.00022057,2]
[394507799,1763647840964,-178.96114393,0.00022057,2]
[394507800,1763647840979,-2146.25354667,0.00022185,2]
[394507801,1763647840989,-154.95,0.00022783,2]
[394507802,1763647840998,-1000.0,0.00023643,2]
[394507803,1763647841008,-175.84,0.00023676,2]
[394507804,1763647841018,-272.83378756,0.00023764,2]
[394507805,1763647841028,-154.95,0.00023773,2]
[394507806,1763647841038,-479.55759781,0.00023991,2]
[394507807,1763647841048,-1000.0,0.00024658,2]
[394507808,1763647841058,-601.49,0.00024658,30]
[394507809,1763647841068,-182.08087398,0.0002479,2]
[394507810,1763647841078,-165.69252863,0.00024799,2]
[394507811,1763647841088,-500.0,0.00024799,2]
[394507812,1763647841098,-298949.15111,0.000248,3]
[394507813,1763647841107,-8656.2167632,0.00024886,2]
[394507814,1763647841117,-178.96114393,0.00024886,2]
[394507815,1763647841127,-19929.9434073,0.00024887,3]
[394507816,1763647841136,-99649.7170366,0.0002489,3]
[394507817,1763647841145,-500.0,0.00024899,2]
[394507818,1763647841154,-1200.0,0.000249,9]
[394507819,1763647841163,-2146.25354667,0.00024996,2]
[394507820,1763647841173,-487.6,0.00026676,2]
[394507821,1763647841182,-300.0,0.00027397,2]
[394507822,1763647841192,-705.0,0.00027556,2]
[394507823,1763647841202,-495.824,0.00027556,2]
[394507824,1763647841219,-561.0,0.00027556,2]
[394507825,1763647841229,-182.08087393,0.00027635,2]
[394507826,1763647841239,-161.19,0.000277,7]
[394507827,1763647841250,-315.34,0.000277,7]
[394507828,1763647841259,-8656.2167632,0.00027715,2]
[394507829,1763647841269,-178.96114393,0.00027715,2]
[394507830,1763647841279,-151.0,0.00027793,7]
[394507831,1763647841291,-19929.9434073,0.00027797,3]
[394507832,1763647841301,-2146.25354667,0.00027807,2]
[394507833,1763647841311,-601.49,0.00029704,30]
[394507834,1763647841319,-182.08087393,0.0003048,2]
[394507835,1763647841329,-272.83378756,0.00030506,3]
[394507836,1763647841339,-8656.2167632,0.00030544,2]
[394507837,1763647841349,-705.0,0.00030556,2]
[394507838,1763647841358,-561.0,0.00030556,2]
[394507839,1763647841368,-2146.25354667,0.00030617,2]
[394507840,1763647841378,-5697.0,0.00031811,5]
[394507841,1763647841388,-487.6,0.00033165,2]
[394507842,1763647841397,-182.08087393,0.00033325,2]
[394507843,1763647841407,-2146.25354667,0.00033428,2]
[394507844,1763647841417,-253.0,0.00033556,2]
[394507845,1763647841426,-561.0,0.00033556,2]
[394507846,1763647841435,-601.49,0.00034751,30]
[394507847,1763647841445,-210.0,0.0003488,30]
[394507848,1763647841455,-150.0,0.00035685,2]
[394507849,1763647841468,-202.87,0.00035752,14]
[394507850,1763647841478,-1018.31,0.00036,2]
[394507851,1763647841489,-182.08087393,0.0003617,2]
[394507852,1763647841498,-500.0,0.00036235,2]
[394507853,1763647841508,-2146.25354667,0.00036239,2]
[394507854,1763647841517,-560.694,0.00036556,2]
[394507855,1763647841526,-1339.0,0.000367,2]
[394507856,1763647841535,-166.66,0.0003672,2]
[394507857,1763647841544,-1018.31,0.0003672,2]
[394507858,1763647841555,-210.0,0.0003689,30]
[394507859,1763647841564,-500.0,0.00036986,15]
[394507860,1763647841574,-440.47921602,0.00036986,15]
[394507861,1763647841583,-1000.0,0.00037,2]
[394507862,1763647841593,-216.748126,0.0003704,2]
[394507863,1763647841603,-315.34,0.000371,14]
[394507864,1763647841612,-167.46148221,0.000372,120]
[394507865,1763647841622,-167.46148221,0.000372,120]
[394507866,1763647841632,-167.46148221,0.000372,120]
[394507867,1763647841642,-216.748126,0.00037517,2]
[394507868,1763647841653,-216.748126,0.00037635,2]
[394507869,1763647841663,-150.0,0.00037751,4]
[394507870,1763647841672,-150.0,0.00037751,4]
[394507871,1763647841681,-150.0,0.00037751,4]
[394507872,1763647841690,-150.0,0.00037751,4]
[394507873,1763647841700,-150.0,0.00037751,4]
[394507874,1763647841710,-152.09254433,0.00037751,4]
[394507875,1763647841723,-150.0,0.00037751,4]
[394507876,1763647841733,-150.0,0.00037751,4]
[394507877,1763647841743,-153.6380904,0.00037751,4]
[394507878,1763647841752,-150.0,0.00037751,4]
[394507879,1763647841762,-150.0,0.00037751,4]
[394507880,1763647841771,-150.0,0.00037751,4]
[394507881,1763647841781,-216.748126,0.00037884,2]
[394507882,1763647841790,-166.66,0.00037932,2]
[394507883,1763647841800,-150.0,0.00038217,7]
[394507884,1763647841809,-877.77,0.00038224,5]
[394507885,1763647841819,-150.0,0.00038275,7]
[394507886,1763647841828,-150.0,0.00038275,7]
[394507887,1763647841838,-161.19,0.000383,30]
[394507888,1763647841848,-216.748126,0.00038334,2]
[394507889,1763647841857,-150.0,0.0003835,7]
[394507890,1763647841867,-216.748126,0.0003847,2]
[394507891,1763647841876,-150.0,0.0003859,7]
[394507892,1763647841886,-1607.0,0.00038602,60]
[394507893,1763647841895,-150.0,0.00038602,60]
[394507894,1763647841905,-216.64784238,0.00038602,60]
[394507895,1763647841915,-1607.0,0.00038629,60]
[394507896,1763647841924,-150.0,0.00038629,60]
[394507897,1763647841934,-1607.0,0.00038657,60]
[394507898,1763647841943,-150.0,0.00038657,60]
[394507899,1763647841953,-150.0,0.00038683,7]
[394507900,1763647841963,-1607.0,0.00038684,60]
[394507901,1763647841975,-1607.0,0.00038712,60]
[394507902,1763647841985,-1607.0,0.00038739,60]
[394507903,1763647841995,-1607.0,0.00038766,60]
[394507904,1763647842005,-1607.0,0.00038794,60]
[394507905,1763647842015,-150.0,0.00038799,7]
[394507906,1763647842024,-150.0,0.00038799,7]
[394507907,1763647842033,-150.0,0.00038799,7]
[394507908,1763647842043,-1607.0,0.00038821,60]
[394507909,1763647842052,-216.748126,0.00038847,2]
[394507910,1763647842062,-1607.0,0.00038849,60]
[394507911,1763647842072,-1607.0,0.00038876,60]
[394507912,1763647842082,-205.9721,0.00038888,30]
[394507913,1763647842091,-1900.0,0.000389,14]
[394507914,1763647842102,-1607.0,0.00038903,60]
[394507915,1763647842111,-210.0,0.0003891,30]
[394507916,1763647842121,-1607.0,0.00038931,60]
[394507917,1763647842131,-1607.0,0.00038958,60]
[394507918,1763647842140,-1607.0,0.00038986,60]
[394507919,1763647842149,-1607.0,0.00039013,60]
[394507920,1763647842159,-182.08087393,0.00039015,2]
[394507921,1763647842169,-1607.0,0.0003904,60]
[394507922,1763647842179,-216.748126,0.00039044,2]
[394507924,1763647842188,-2146.25354667,0.00039049,2]
[394507925,1763647842199,-1607.0,0.00039068,60]
[394507927,1763647842209,-1607.0,0.00039095,60]
[394507928,1763647842218,-1607.0,0.00039123,60]
[394507929,1763647842227,-166.66,0.00039144,2]